[Event "*** Titled Tuesday Blitz"]
[Site "Chess.com"]
[Date "2020.04.28"]
[Round "9"]
[White "Guenplen"]
[Black "Evgeny81"]
[Result "1-0"]
[WhiteElo "2944"]
[BlackElo "2703"]
[TimeControl "180+1"]
[EndTime "11:45:52 PDT"]
[Termination "Guenplen won by resignation"]

1. d4 {[%clk 0:03:00.9]} 1... d5 {[%clk 0:03:00]} 2. Bf4 {[%clk 0:03:00.9]} 2...
Nf6 {[%clk 0:02:59.9]} 3. e3 {[%clk 0:03:00.1]} 3... Bg4 {[%clk 0:02:58.1]} 4.
Qd3 {[%clk 0:02:56.7]} 4... Nbd7 {[%clk 0:02:53.3]} 5. h3 {[%clk 0:02:53.9]}
5... Bh5 {[%clk 0:02:53]} 6. Qb3 {[%clk 0:02:54]} 6... Qc8 {[%clk 0:02:47.4]} 7.
c4 {[%clk 0:02:53.6]} 7... e6 {[%clk 0:02:45.5]} 8. Nc3 {[%clk 0:02:53.5]} 8...
c6 {[%clk 0:02:41.3]} 9. Rc1 {[%clk 0:02:51.4]} 9... Be7 {[%clk 0:02:40.2]} 10.
cxd5 {[%clk 0:02:51.4]} 10... Nxd5 {[%clk 0:02:38.5]} 11. Bh2 {[%clk 0:02:43]}
11... O-O {[%clk 0:02:30.7]} 12. Nf3 {[%clk 0:02:40.9]} 12... Bxf3 {[%clk
0:02:29.7]} 13. gxf3 {[%clk 0:02:41.8]} 13... a5 {[%clk 0:02:18.7]} 14. a3
{[%clk 0:02:40.4]} 14... Nxc3 {[%clk 0:02:13.8]} 15. Qxc3 {[%clk 0:02:36.1]}
15... Nf6 {[%clk 0:02:10.2]} 16. Bd3 {[%clk 0:02:34.2]} 16... Qd7 {[%clk
0:02:07.8]} 17. Be5 {[%clk 0:02:26.2]} 17... Nd5 {[%clk 0:02:06.8]} 18. Qc2
{[%clk 0:02:26.1]} 18... g6 {[%clk 0:02:06.2]} 19. h4 {[%clk 0:02:26.2]} 19...
Bd6 {[%clk 0:02:02.3]} 20. h5 {[%clk 0:02:23.2]} 20... Bxe5 {[%clk 0:02:00.9]}
21. dxe5 {[%clk 0:02:23.2]} 21... Kg7 {[%clk 0:01:55.3]} 22. h6+ {[%clk
0:02:22.8]} 22... Kg8 {[%clk 0:01:53]} 23. f4 {[%clk 0:02:19.3]} 23... Rfd8
{[%clk 0:01:51.2]} 24. Rd1 {[%clk 0:02:18.7]} 24... Qe7 {[%clk 0:01:45.3]} 25.
Ke2 {[%clk 0:02:17.8]} 25... Nb6 {[%clk 0:01:31.4]} 26. Qb3 {[%clk 0:02:11.3]}
26... Qc7 {[%clk 0:01:23]} 27. Be4 {[%clk 0:02:08.1]} 27... Rxd1 {[%clk
0:01:19.9]} 28. Rxd1 {[%clk 0:02:07]} 28... Nd5 {[%clk 0:01:19.8]} 29. Rc1
{[%clk 0:01:40.2]} 29... Qe7 {[%clk 0:01:18.6]} 30. Bf3 {[%clk 0:01:32.8]} 30...
Rd8 {[%clk 0:01:17.5]} 31. Qa4 {[%clk 0:01:27]} 31... Qc7 {[%clk 0:01:12]} 32.
Qc4 {[%clk 0:01:24.4]} 32... Qb6 {[%clk 0:01:11.3]} 33. Rc2 {[%clk 0:01:20.6]}
33... Ne7 {[%clk 0:01:07.1]} 34. Be4 {[%clk 0:01:18.5]} 34... Rd7 {[%clk
0:01:02.7]} 35. b4 {[%clk 0:01:10.7]} 35... axb4 {[%clk 0:01:01.1]} 36. axb4
{[%clk 0:01:11.6]} 36... Nd5 {[%clk 0:00:55.3]} 37. Bxd5 {[%clk 0:00:56.9]}
37... Rxd5 {[%clk 0:00:52.4]} 38. Ra2 {[%clk 0:00:53.6]} 38... Qd8 {[%clk
0:00:46.3]} 39. Ra7 {[%clk 0:00:45.2]} 39... Qf8 {[%clk 0:00:42.3]} 40. e4
{[%clk 0:00:35.1]} 40... Rd7 {[%clk 0:00:40.1]} 41. f5 {[%clk 0:00:34.1]} 41...
Qxh6 {[%clk 0:00:33.5]} 42. Ra8+ {[%clk 0:00:33.1]} 1-0

[Event "*** Titled Tuesday Blitz"]
[Site "Chess.com"]
[Date "2020.04.28"]
[Round "9"]
[White "inegrepus"]
[Black "NotFischer"]
[Result "1-0"]
[WhiteElo "2263"]
[BlackElo "2149"]
[TimeControl "180+1"]
[EndTime "11:45:53 PDT"]
[Termination "inegrepus won by resignation"]

1. d4 {[%clk 0:03:00.9]} 1... Nf6 {[%clk 0:02:59.7]} 2. c4 {[%clk 0:03:00.6]}
2... e6 {[%clk 0:02:59]} 3. g3 {[%clk 0:02:59.7]} 3... d5 {[%clk 0:02:58.9]} 4.
Bg2 {[%clk 0:02:59.7]} 4... Be7 {[%clk 0:02:59.1]} 5. Nf3 {[%clk 0:03:00.3]}
5... O-O {[%clk 0:02:59.1]} 6. O-O {[%clk 0:03:00.8]} 6... Nbd7 {[%clk 0:02:59]}
7. Nbd2 {[%clk 0:03:00.9]} 7... c6 {[%clk 0:02:59.2]} 8. Qc2 {[%clk 0:03:01]}
8... b6 {[%clk 0:02:59.3]} 9. e4 {[%clk 0:03:00.8]} 9... dxe4 {[%clk 0:02:58.5]}
10. Nxe4 {[%clk 0:03:01.7]} 10... Bb7 {[%clk 0:02:58.8]} 11. Ne5 {[%clk
0:02:58.1]} 11... Nxe5 {[%clk 0:02:33]} 12. dxe5 {[%clk 0:02:59]} 12... Nd7
{[%clk 0:02:32.9]} 13. f4 {[%clk 0:02:51.5]} 13... Qc7 {[%clk 0:02:27.1]} 14.
Be3 {[%clk 0:02:47.6]} 14... c5 {[%clk 0:02:26]} 15. Rfd1 {[%clk 0:02:46.1]}
15... Rad8 {[%clk 0:02:20.2]} 16. Rd6 {[%clk 0:02:32.4]} 16... Bxe4 {[%clk
0:02:16.4]} 17. Bxe4 {[%clk 0:02:30.5]} 17... Bxd6 {[%clk 0:02:12.8]} 18. Bxh7+
{[%clk 0:02:29.3]} 18... Kh8 {[%clk 0:02:13.4]} 19. exd6 {[%clk 0:02:29.4]}
19... Qxd6 {[%clk 0:02:13.3]} 20. Rd1 {[%clk 0:02:26.5]} 20... Qe7 {[%clk
0:02:13]} 21. Be4 {[%clk 0:02:19.6]} 21... Nf6 {[%clk 0:02:12.6]} 22. Bd3 {[%clk
0:02:07.8]} 22... Qd6 {[%clk 0:01:51.6]} 23. Qg2 {[%clk 0:01:43.8]} 23... Kg8
{[%clk 0:01:38]} 24. g4 {[%clk 0:01:35.7]} 24... g6 {[%clk 0:01:04.4]} 25. Rd2
{[%clk 0:01:30.8]} 25... Qc7 {[%clk 0:00:58.4]} 26. f5 {[%clk 0:01:28.3]} 26...
Qe5 {[%clk 0:00:55.8]} 27. Bh6 {[%clk 0:00:51.5]} 27... Qe1+ {[%clk 0:00:53.9]}
28. Qf1 {[%clk 0:00:48.6]} 28... Qxf1+ {[%clk 0:00:50.5]} 29. Kxf1 {[%clk
0:00:47.5]} 29... Ne4 {[%clk 0:00:39]} 30. Bxe4 {[%clk 0:00:45.6]} 30... Rxd2
{[%clk 0:00:35.5]} 31. Bxd2 {[%clk 0:00:46.5]} 31... exf5 {[%clk 0:00:35.5]} 32.
gxf5 {[%clk 0:00:46.2]} 32... gxf5 {[%clk 0:00:34.1]} 33. Bxf5 {[%clk
0:00:45.9]} 33... Rd8 {[%clk 0:00:34.1]} 34. Bc3 {[%clk 0:00:45.4]} 34... Rd1+
{[%clk 0:00:33.2]} 35. Kg2 {[%clk 0:00:44.6]} 35... Kf8 {[%clk 0:00:30.5]} 36.
h4 {[%clk 0:00:43.9]} 36... Ra1 {[%clk 0:00:26]} 37. h5 {[%clk 0:00:38.9]} 37...
f6 {[%clk 0:00:23.7]} 38. h6 {[%clk 0:00:37.9]} 38... Kf7 {[%clk 0:00:22.4]} 39.
h7 {[%clk 0:00:37.8]} 39... Kg7 {[%clk 0:00:20.8]} 40. Bxf6+ {[%clk 0:00:37.8]}
1-0

[Event "*** Titled Tuesday Blitz"]
[Site "Chess.com"]
[Date "2020.04.28"]
[Round "9"]
[White "Warerman"]
[Black "ferdipy"]
[Result "0-1"]
[WhiteElo "2431"]
[BlackElo "2291"]
[TimeControl "180+1"]
[EndTime "11:45:54 PDT"]
[Termination "ferdipy won by checkmate"]

1. d4 {[%clk 0:03:00.9]} 1... e5 {[%clk 0:02:58.6]} 2. dxe5 {[%clk 0:02:58.3]}
2... d6 {[%clk 0:02:58.8]} 3. Nf3 {[%clk 0:02:57.6]} 3... Nc6 {[%clk 0:02:57.8]}
4. Bg5 {[%clk 0:02:52.7]} 4... f6 {[%clk 0:02:47.3]} 5. exf6 {[%clk 0:02:52.2]}
5... gxf6 {[%clk 0:02:47.2]} 6. Bh4 {[%clk 0:02:42.4]} 6... Bg4 {[%clk
0:02:47.2]} 7. h3 {[%clk 0:02:40.5]} 7... Bh5 {[%clk 0:02:40.6]} 8. e3 {[%clk
0:02:37.8]} 8... Qe7 {[%clk 0:02:36]} 9. Nc3 {[%clk 0:02:29.6]} 9... O-O-O
{[%clk 0:02:35.7]} 10. Bb5 {[%clk 0:02:22.1]} 10... Ne5 {[%clk 0:02:35.9]} 11.
Be2 {[%clk 0:02:08.5]} 11... Bg6 {[%clk 0:02:30.2]} 12. Nd4 {[%clk 0:01:59]}
12... a6 {[%clk 0:02:27.2]} 13. Nd5 {[%clk 0:01:55.4]} 13... Qf7 {[%clk
0:02:24.3]} 14. c4 {[%clk 0:01:55.4]} 14... h5 {[%clk 0:02:15.8]} 15. b4 {[%clk
0:01:30.5]} 15... Kb8 {[%clk 0:02:02.9]} 16. b5 {[%clk 0:01:29.7]} 16... axb5
{[%clk 0:00:48.2]} 17. Nf4 {[%clk 0:01:14.4]} 17... bxc4 {[%clk 0:00:44.7]} 18.
Qa4 {[%clk 0:01:01.5]} 18... Ne7 {[%clk 0:00:36.6]} 19. Nfe6 {[%clk 0:00:51]}
19... Re8 {[%clk 0:00:34.4]} 20. Bxc4 {[%clk 0:00:47.1]} 20... Nxc4 {[%clk
0:00:34.6]} 21. Qxc4 {[%clk 0:00:48]} 21... Nf5 {[%clk 0:00:31.8]} 22. Bxf6
{[%clk 0:00:42.7]} 22... Bg7 {[%clk 0:00:25.3]} 23. Nc6+ {[%clk 0:00:26.1]}
23... bxc6 {[%clk 0:00:19.8]} 24. Qa6 {[%clk 0:00:22.9]} 24... Nxe3 {[%clk
0:00:14.2]} 25. Bxg7 {[%clk 0:00:16.2]} 25... Qxe6 {[%clk 0:00:11.4]} 26. Bxh8
{[%clk 0:00:11.2]} 26... Nc2+ {[%clk 0:00:10.8]} 27. Kf1 {[%clk 0:00:11.3]}
27... Qe1+ {[%clk 0:00:10.2]} 28. Rxe1 {[%clk 0:00:10.5]} 28... Rxe1# {[%clk
0:00:11.1]} 0-1

[Event "*** Titled Tuesday Blitz"]
[Site "Chess.com"]
[Date "2020.04.28"]
[Round "9"]
[White "Superfelix"]
[Black "DDTerziev04"]
[Result "1-0"]
[WhiteElo "2481"]
[BlackElo "2336"]
[TimeControl "180+1"]
[EndTime "11:45:55 PDT"]
[Termination "Superfelix won by resignation"]

1. e4 {[%clk 0:03:00.9]} 1... e6 {[%clk 0:02:59.6]} 2. d4 {[%clk 0:02:59.8]}
2... d5 {[%clk 0:02:59.9]} 3. exd5 {[%clk 0:03:00.7]} 3... exd5 {[%clk
0:02:59.7]} 4. Bd3 {[%clk 0:03:01.6]} 4... Bd6 {[%clk 0:03:00]} 5. Nf3 {[%clk
0:03:01.2]} 5... Ne7 {[%clk 0:02:59.8]} 6. Nbd2 {[%clk 0:03:01.7]} 6... O-O
{[%clk 0:02:58.9]} 7. Nf1 {[%clk 0:03:02.2]} 7... Bf5 {[%clk 0:02:58.8]} 8. Ne3
{[%clk 0:03:01.3]} 8... Bxd3 {[%clk 0:02:58.4]} 9. Qxd3 {[%clk 0:03:02.2]} 9...
Nbc6 {[%clk 0:02:57]} 10. O-O {[%clk 0:03:02.5]} 10... Qd7 {[%clk 0:02:50.3]}
11. h3 {[%clk 0:02:58]} 11... h6 {[%clk 0:02:48.9]} 12. c3 {[%clk 0:02:53.4]}
12... Ng6 {[%clk 0:02:48.3]} 13. Nf5 {[%clk 0:02:51.9]} 13... Bf4 {[%clk
0:02:47.4]} 14. Re1 {[%clk 0:02:50.1]} 14... Bxc1 {[%clk 0:02:46.7]} 15. Raxc1
{[%clk 0:02:51]} 15... Rfe8 {[%clk 0:02:46.8]} 16. g3 {[%clk 0:02:48.8]} 16...
Rxe1+ {[%clk 0:02:44.2]} 17. Rxe1 {[%clk 0:02:49.7]} 17... Re8 {[%clk
0:02:44.1]} 18. Rxe8+ {[%clk 0:02:49.7]} 18... Qxe8 {[%clk 0:02:45]} 19. Kg2
{[%clk 0:02:48.4]} 19... Qe6 {[%clk 0:02:32.2]} 20. Ne3 {[%clk 0:02:46.4]} 20...
Nce7 {[%clk 0:02:27.1]} 21. Qb5 {[%clk 0:02:40.6]} 21... Qc6 {[%clk 0:02:19.2]}
22. Qxc6 {[%clk 0:02:38.4]} 22... bxc6 {[%clk 0:02:20.1]} 23. Nd2 {[%clk
0:02:34.6]} 23... Nc8 {[%clk 0:02:19.2]} 24. Nb3 {[%clk 0:02:34.5]} 24... Nd6
{[%clk 0:02:17.6]} 25. Na5 {[%clk 0:02:30.7]} 25... Ne7 {[%clk 0:02:17.1]} 26.
f3 {[%clk 0:02:29.5]} 26... f5 {[%clk 0:02:16.5]} 27. h4 {[%clk 0:02:28.3]}
27... g5 {[%clk 0:02:14.9]} 28. hxg5 {[%clk 0:02:28.2]} 28... hxg5 {[%clk
0:02:15.8]} 29. Nc2 {[%clk 0:02:27.3]} 29... f4 {[%clk 0:01:50.6]} 30. gxf4
{[%clk 0:02:24.6]} 30... gxf4 {[%clk 0:01:50.3]} 31. Nb4 {[%clk 0:02:25.1]}
31... Kf7 {[%clk 0:01:44.6]} 32. Naxc6 {[%clk 0:02:24.8]} 32... Nxc6 {[%clk
0:01:44.7]} 33. Nxc6 {[%clk 0:02:25.7]} 33... Nc4 {[%clk 0:01:28.4]} 34. b3
{[%clk 0:02:23.8]} 34... Ne3+ {[%clk 0:01:28.1]} 35. Kh3 {[%clk 0:02:22.4]}
35... a6 {[%clk 0:01:23.4]} 36. Nb4 {[%clk 0:02:20.6]} 36... a5 {[%clk
0:01:10.7]} 37. Nc6 {[%clk 0:02:19.8]} 37... Nd1 {[%clk 0:01:10.6]} 38. c4
{[%clk 0:02:19.9]} 38... dxc4 {[%clk 0:01:05.7]} 39. Ne5+ {[%clk 0:02:18.1]}
39... Ke6 {[%clk 0:01:00.6]} 40. Nxc4 {[%clk 0:02:19]} 40... Nc3 {[%clk
0:00:55.3]} 41. a4 {[%clk 0:02:16.4]} 41... Ne2 {[%clk 0:00:51.8]} 42. Nxa5
{[%clk 0:02:14.1]} 42... Nxd4 {[%clk 0:00:47.9]} 43. Kg4 {[%clk 0:02:14.4]}
43... Ke5 {[%clk 0:00:41.4]} 44. b4 {[%clk 0:02:13.1]} 44... Nc2 {[%clk
0:00:38.7]} 45. b5 {[%clk 0:02:12.1]} 45... Ne3+ {[%clk 0:00:38.1]} 46. Kg5
{[%clk 0:02:12.2]} 46... Nd5 {[%clk 0:00:30.2]} 47. Nc6+ {[%clk 0:02:08.7]}
47... Kd6 {[%clk 0:00:29.9]} 48. a5 {[%clk 0:02:09.2]} 48... Nc3 {[%clk
0:00:28.5]} 49. a6 {[%clk 0:01:59.2]} 49... Nxb5 {[%clk 0:00:17.5]} 50. a7
{[%clk 0:01:59.4]} 50... Nxa7 {[%clk 0:00:18]} 51. Nxa7 {[%clk 0:02:00.3]} 51...
c5 {[%clk 0:00:17.1]} 52. Kxf4 {[%clk 0:01:55.9]} 52... Kd5 {[%clk 0:00:16.9]}
53. Ke3 {[%clk 0:01:53.5]} 53... c4 {[%clk 0:00:15.4]} 54. Nb5 {[%clk
0:01:53.3]} 54... Ke5 {[%clk 0:00:15.3]} 55. Nc3 {[%clk 0:01:53.6]} 55... Kf5
{[%clk 0:00:15.3]} 56. f4 {[%clk 0:01:53.7]} 56... Kf6 {[%clk 0:00:13.6]} 57.
Ke4 {[%clk 0:01:54.6]} 57... Ke6 {[%clk 0:00:13.7]} 58. f5+ {[%clk 0:01:54.4]}
58... Kf6 {[%clk 0:00:14.1]} 59. Kf4 {[%clk 0:01:53.2]} 59... Kf7 {[%clk
0:00:14.2]} 60. Ke5 {[%clk 0:01:54.1]} 60... Ke7 {[%clk 0:00:13.7]} 61. f6+
{[%clk 0:01:55]} 61... Kf7 {[%clk 0:00:14.1]} 62. Kf5 {[%clk 0:01:55.7]} 62...
Kf8 {[%clk 0:00:14.5]} 63. Ke6 {[%clk 0:01:56.6]} 63... Ke8 {[%clk 0:00:14.5]}
64. Ne4 {[%clk 0:01:50.3]} 64... Kf8 {[%clk 0:00:13.2]} 65. f7 {[%clk
0:01:49.5]} 1-0

[Event "*** Titled Tuesday Blitz"]
[Site "Chess.com"]
[Date "2020.04.28"]
[Round "9"]
[White "Gareth-Bale11"]
[Black "stoleriu"]
[Result "1-0"]
[WhiteElo "2736"]
[BlackElo "2549"]
[TimeControl "180+1"]
[EndTime "11:45:56 PDT"]
[Termination "Gareth-Bale11 won by checkmate"]

1. e4 {[%clk 0:03:00.9]} 1... e6 {[%clk 0:02:56.4]} 2. d4 {[%clk 0:02:57]} 2...
d5 {[%clk 0:02:57.3]} 3. Nc3 {[%clk 0:02:57.4]} 3... Bb4 {[%clk 0:02:56.8]} 4.
e5 {[%clk 0:02:57.3]} 4... c5 {[%clk 0:02:56.6]} 5. a3 {[%clk 0:02:57.2]} 5...
Bxc3+ {[%clk 0:02:54.8]} 6. bxc3 {[%clk 0:02:57.1]} 6... Qc7 {[%clk 0:02:55.7]}
7. Bd2 {[%clk 0:02:53.4]} 7... Ne7 {[%clk 0:02:48.4]} 8. Bd3 {[%clk 0:02:48.5]}
8... b6 {[%clk 0:02:47.6]} 9. Qg4 {[%clk 0:02:45]} 9... Kf8 {[%clk 0:02:44.9]}
10. Nf3 {[%clk 0:02:36.6]} 10... Ba6 {[%clk 0:02:43.5]} 11. O-O {[%clk
0:02:31.5]} 11... Bxd3 {[%clk 0:02:41.1]} 12. cxd3 {[%clk 0:02:32.4]} 12... c4
{[%clk 0:02:42]} 13. dxc4 {[%clk 0:02:28.7]} 13... dxc4 {[%clk 0:02:24]} 14. Ng5
{[%clk 0:02:26]} 14... h6 {[%clk 0:02:20.3]} 15. Ne4 {[%clk 0:02:23.8]} 15...
Nbc6 {[%clk 0:02:07.1]} 16. Nd6 {[%clk 0:02:13.8]} 16... Na5 {[%clk 0:02:02.9]}
17. Rae1 {[%clk 0:02:00.8]} 17... Nc8 {[%clk 0:01:45.8]} 18. Ne4 {[%clk
0:01:46.5]} 18... Ne7 {[%clk 0:01:38.4]} 19. f4 {[%clk 0:01:45.9]} 19... Nf5
{[%clk 0:01:33.9]} 20. Qf3 {[%clk 0:01:43.2]} 20... h5 {[%clk 0:01:25]} 21. Nd6
{[%clk 0:01:32.2]} 21... Qc6 {[%clk 0:01:13.6]} 22. Nxf5 {[%clk 0:01:12.5]}
22... Qxf3 {[%clk 0:01:12.2]} 23. Rxf3 {[%clk 0:01:13.4]} 23... exf5 {[%clk
0:01:12.8]} 24. d5 {[%clk 0:01:12]} 24... Rd8 {[%clk 0:01:13]} 25. d6 {[%clk
0:01:12.2]} 25... Ke8 {[%clk 0:01:02.3]} 26. Be3 {[%clk 0:01:01.6]} 26... Kd7
{[%clk 0:01:02]} 27. Rg3 {[%clk 0:01:00]} 27... g6 {[%clk 0:01:01.7]} 28. Bd4
{[%clk 0:00:54.3]} 28... Ke6 {[%clk 0:01:01.6]} 29. Rb1 {[%clk 0:00:49.8]} 29...
Rd7 {[%clk 0:00:48]} 30. Rb5 {[%clk 0:00:42.6]} 30... Rdd8 {[%clk 0:00:42.5]}
31. Re3 {[%clk 0:00:41.9]} 31... Rd7 {[%clk 0:00:42]} 32. Re1 {[%clk 0:00:41.4]}
32... Rdd8 {[%clk 0:00:38.4]} 33. Reb1 {[%clk 0:00:40.9]} 33... Rd7 {[%clk
0:00:37.6]} 34. R1b4 {[%clk 0:00:39.4]} 34... Rc8 {[%clk 0:00:36.6]} 35. Kf2
{[%clk 0:00:37.4]} 35... Rc6 {[%clk 0:00:33.3]} 36. a4 {[%clk 0:00:36.7]} 36...
Rc8 {[%clk 0:00:22.4]} 37. Kf3 {[%clk 0:00:36]} 37... Nc6 {[%clk 0:00:17.4]} 38.
Rxc4 {[%clk 0:00:32.2]} 38... Nxd4+ {[%clk 0:00:17.6]} 39. cxd4 {[%clk
0:00:33.1]} 39... Rxc4 {[%clk 0:00:17.7]} 40. d5# {[%clk 0:00:33.3]} 1-0

[Event "*** Titled Tuesday Blitz"]
[Site "Chess.com"]
[Date "2020.04.28"]
[Round "9"]
[White "tteshan"]
[Black "j2806"]
[Result "1-0"]
[WhiteElo "2230"]
[BlackElo "1966"]
[TimeControl "180+1"]
[EndTime "11:45:58 PDT"]
[Termination "tteshan won by resignation"]

1. e4 {[%clk 0:03:00.9]} 1... c5 {[%clk 0:02:58]} 2. Nf3 {[%clk 0:03:00.5]} 2...
d6 {[%clk 0:02:57.5]} 3. d4 {[%clk 0:03:00.8]} 3... cxd4 {[%clk 0:02:57.6]} 4.
Nxd4 {[%clk 0:03:01.7]} 4... Nf6 {[%clk 0:02:57.6]} 5. f3 {[%clk 0:03:01.8]}
5... a6 {[%clk 0:02:56.1]} 6. c4 {[%clk 0:03:01.4]} 6... g6 {[%clk 0:02:46.7]}
7. Be3 {[%clk 0:03:00.9]} 7... Bg7 {[%clk 0:02:46.7]} 8. Nc3 {[%clk 0:02:59.5]}
8... Nc6 {[%clk 0:02:46.2]} 9. Be2 {[%clk 0:02:59.4]} 9... O-O {[%clk
0:02:45.9]} 10. O-O {[%clk 0:02:59.3]} 10... Bd7 {[%clk 0:02:43.9]} 11. Qd2
{[%clk 0:02:58.8]} 11... Rc8 {[%clk 0:02:43.6]} 12. Rac1 {[%clk 0:02:57.6]}
12... Ne5 {[%clk 0:02:24.5]} 13. b3 {[%clk 0:02:57.1]} 13... a5 {[%clk
0:02:23.7]} 14. Rfd1 {[%clk 0:02:52.8]} 14... a4 {[%clk 0:02:19.3]} 15. Nxa4
{[%clk 0:02:26.2]} 15... Bxa4 {[%clk 0:02:06.1]} 16. bxa4 {[%clk 0:02:27.1]}
16... Ra8 {[%clk 0:02:03.5]} 17. Qb4 {[%clk 0:01:57.3]} 17... Qc7 {[%clk
0:01:47.1]} 18. c5 {[%clk 0:01:46.4]} 18... Nc6 {[%clk 0:01:41.4]} 19. Nxc6
{[%clk 0:01:42.7]} 19... bxc6 {[%clk 0:01:25.3]} 20. cxd6 {[%clk 0:01:38.7]}
20... exd6 {[%clk 0:01:24.3]} 21. Rxd6 {[%clk 0:01:27.9]} 21... Rxa4 {[%clk
0:01:23.4]} 22. Qxa4 {[%clk 0:01:22.8]} 22... Qxd6 {[%clk 0:01:23.5]} 23. Qxc6
{[%clk 0:01:14.3]} 23... Qxc6 {[%clk 0:01:18.1]} 24. Rxc6 {[%clk 0:01:13.9]}
24... Ra8 {[%clk 0:01:18.7]} 25. Rc2 {[%clk 0:01:11.5]} 25... Nd7 {[%clk
0:01:14.6]} 26. Bc4 {[%clk 0:00:55.6]} 26... Kf8 {[%clk 0:01:11.2]} 27. Bb5
{[%clk 0:00:47.6]} 27... Ne5 {[%clk 0:00:53.2]} 28. a4 {[%clk 0:00:40.7]} 28...
Ke7 {[%clk 0:00:50.5]} 29. Rc7+ {[%clk 0:00:35.9]} 29... Kd6 {[%clk 0:00:49.7]}
30. Rc2 {[%clk 0:00:20.5]} 30... Nd7 {[%clk 0:00:40.3]} 31. Rd2+ {[%clk
0:00:18.8]} 31... Ke5 {[%clk 0:00:38.9]} 32. Rxd7 {[%clk 0:00:18.2]} 32... Ke6
{[%clk 0:00:38.7]} 33. Ra7 {[%clk 0:00:17.2]} 33... Rxa7 {[%clk 0:00:37.7]} 34.
Bxa7 {[%clk 0:00:16.7]} 34... Bc3 {[%clk 0:00:37]} 35. Kf2 {[%clk 0:00:16.4]}
35... Kd6 {[%clk 0:00:37]} 36. Ke3 {[%clk 0:00:16.4]} 36... Ba5 {[%clk
0:00:36.7]} 37. Kd4 {[%clk 0:00:16.2]} 37... Kc7 {[%clk 0:00:36.7]} 38. Bc5
{[%clk 0:00:16.2]} 38... Kb7 {[%clk 0:00:36.6]} 39. Ke5 {[%clk 0:00:16.4]} 39...
Bb6 {[%clk 0:00:36.6]} 40. Bxb6 {[%clk 0:00:16]} 40... Kxb6 {[%clk 0:00:37.5]}
41. Kf6 {[%clk 0:00:16.7]} 41... Ka5 {[%clk 0:00:37.6]} 42. Kxf7 {[%clk
0:00:17.2]} 42... h5 {[%clk 0:00:37.6]} 43. Kxg6 {[%clk 0:00:17.5]} 43... h4
{[%clk 0:00:37.2]} 44. e5 {[%clk 0:00:18]} 44... h3 {[%clk 0:00:37.6]} 45. gxh3
{[%clk 0:00:18.9]} 45... Kb4 {[%clk 0:00:37.5]} 46. e6 {[%clk 0:00:19.3]} 46...
Ka5 {[%clk 0:00:36.3]} 47. e7 {[%clk 0:00:19.6]} 1-0

[Event "*** Titled Tuesday Blitz"]
[Site "Chess.com"]
[Date "2020.04.28"]
[Round "9"]
[White "Hippotaner"]
[Black "annacramling"]
[Result "1-0"]
[WhiteElo "2228"]
[BlackElo "1930"]
[TimeControl "180+1"]
[EndTime "11:45:58 PDT"]
[Termination "Hippotaner won on time"]

1. e4 {[%clk 0:03:00.9]} 1... c5 {[%clk 0:02:59.7]} 2. Nf3 {[%clk 0:02:55.6]}
2... a6 {[%clk 0:03:00]} 3. a4 {[%clk 0:02:54.5]} 3... Nc6 {[%clk 0:02:53.1]} 4.
g3 {[%clk 0:02:45.7]} 4... g6 {[%clk 0:02:52.3]} 5. Bg2 {[%clk 0:02:46.1]} 5...
Bg7 {[%clk 0:02:52.9]} 6. O-O {[%clk 0:02:46.5]} 6... d6 {[%clk 0:02:51.6]} 7.
d3 {[%clk 0:02:46.8]} 7... Nf6 {[%clk 0:02:50.8]} 8. Nc3 {[%clk 0:02:41.5]} 8...
O-O {[%clk 0:02:50]} 9. Be3 {[%clk 0:02:20.7]} 9... Bg4 {[%clk 0:02:33.3]} 10.
h3 {[%clk 0:02:20]} 10... Bxf3 {[%clk 0:02:15.7]} 11. Bxf3 {[%clk 0:02:19.4]}
11... Nd7 {[%clk 0:02:13.8]} 12. Qd2 {[%clk 0:02:19]} 12... Nde5 {[%clk
0:02:13.4]} 13. Bg2 {[%clk 0:02:18]} 13... Nd7 {[%clk 0:01:33.1]} 14. f4 {[%clk
0:02:13.8]} 14... Rc8 {[%clk 0:01:26.2]} 15. g4 {[%clk 0:02:02.1]} 15... Nd4
{[%clk 0:01:08.3]} 16. Kh2 {[%clk 0:01:54.9]} 16... h6 {[%clk 0:01:00.7]} 17.
Rae1 {[%clk 0:01:50.3]} 17... b5 {[%clk 0:00:42.5]} 18. axb5 {[%clk 0:01:49.7]}
18... axb5 {[%clk 0:00:43.4]} 19. Nd1 {[%clk 0:01:49.6]} 19... e6 {[%clk
0:00:34.5]} 20. c3 {[%clk 0:01:47.5]} 20... Nb3 {[%clk 0:00:31.5]} 21. Qc2
{[%clk 0:01:47.6]} 21... c4 {[%clk 0:00:28.7]} 22. d4 {[%clk 0:01:47.7]} 22...
e5 {[%clk 0:00:26.2]} 23. fxe5 {[%clk 0:01:13.4]} 23... dxe5 {[%clk 0:00:26]}
24. d5 {[%clk 0:01:13.2]} 24... Ndc5 {[%clk 0:00:23]} 25. Bxc5 {[%clk
0:01:13.4]} 25... Nxc5 {[%clk 0:00:21.9]} 26. Ne3 {[%clk 0:01:14]} 26... Nd3
{[%clk 0:00:20.8]} 27. Ra1 {[%clk 0:01:14.5]} 27... Ra8 {[%clk 0:00:20.5]} 28.
b3 {[%clk 0:01:14.1]} 28... Qb6 {[%clk 0:00:19]} 29. Rxa8 {[%clk 0:01:04.3]}
29... Rxa8 {[%clk 0:00:18.1]} 30. Nd1 {[%clk 0:01:01.6]} 30... Qa6 {[%clk
0:00:12]} 31. bxc4 {[%clk 0:01:01.2]} 31... bxc4 {[%clk 0:00:12.2]} 32. Ne3
{[%clk 0:01:01.6]} 32... Qa2 {[%clk 0:00:11.2]} 33. Qxa2 {[%clk 0:00:59.8]}
33... Rxa2 {[%clk 0:00:11.4]} 34. Nxc4 {[%clk 0:01:00.7]} 34... Nf4 {[%clk
0:00:11.4]} 35. Rg1 {[%clk 0:01:01.1]} 35... Rc2 {[%clk 0:00:08.5]} 36. d6
{[%clk 0:00:58.7]} 36... Rxc3 {[%clk 0:00:06.9]} 37. d7 {[%clk 0:00:55.8]} 37...
Rd3 {[%clk 0:00:06.2]} 38. Nb6 {[%clk 0:00:52.9]} 38... Bf6 {[%clk 0:00:05.2]}
39. Nd5 {[%clk 0:00:51.3]} 39... Nxd5 {[%clk 0:00:04.9]} 40. exd5 {[%clk
0:00:52.2]} 40... Rd2 {[%clk 0:00:03.9]} 41. Rc1 {[%clk 0:00:46.5]} 1-0